bitfinex-derivatives/quotes_SOLF0:USTF0_20250817
["timestamp","ask_amount","ask_price","bid_price","bid_amount"]
[1755395075673,2.83,188.01,187.91,4.97913873]
[1755395075874,2.83,187.99,187.89,2.99]
[1755395076078,2.83,187.97,187.89,2.99]
[1755395076277,2.83,187.95,187.89,2.99]
[1755395076886,2.83,187.93,187.85,1.98913873]
[1755395077080,2.83,187.93,187.85,4.97913873]
[1755395077285,2.83,187.91,187.85,4.97913873]
[1755395077483,2.83,187.91,187.85,7.30873873]
[1755395077784,2.83,187.9,187.88,2.99]
[1755395078082,5.85415738,187.99,187.86,2.99]
[1755395078083,2.83,187.96,187.86,2.99]
[1755395078289,2.83,187.94,187.86,2.99]
[1755395078488,4.04680176,187.93,187.88,1.98913873]
[1755395078685,2.83,187.92,187.9,2.99]
[1755395079482,2.83,187.89,187.87,2.99]
[1755395079987,1.98913873,188.0,187.85,1.98913873]
[1755395079988,2.83,187.91,187.86,2.99]
[1755395080185,7.97415738,187.99,187.89,5.3184]
[1755395080488,2.83,187.97,187.89,2.99]
[1755395080685,2.83,187.95,187.89,2.99]
[1755395080986,2.83,187.93,187.9,2.99]
[1755395081186,4.05209927,187.92,187.9,8.3084]
[1755395081387,2.83,187.93,187.9,8.3084]
[1755395081589,4.05585039,187.92,187.9,8.3084]
[1755395081785,2.83,187.93,187.9,8.3084]
[1755395081986,4.05585039,187.92,187.9,8.3084]
[1755395082182,4.05988519,187.91,187.9,8.3084]
[1755395083886,2.83,187.95,187.93,2.99]
[1755395084094,2.83,187.94,187.93,2.99]
[1755395084991,2.83,187.95,187.93,2.99]
[1755395085291,2.83,187.97,187.92,5.3176]
[1755395085591,2.83,187.97,187.92,2.99]
[1755395085786,2.83,187.96,187.93,2.99]
[1755395086093,2.83,187.95,187.94,2.99]
[1755395086790,4.95,187.97,187.94,8.3073]
[1755395086990,2.12,187.97,187.95,2.99]
[1755395087190,2.12,187.97,187.96,2.99]
[1755395087387,2.83,187.99,187.94,1.98913873]
[1755395087592,5.13,187.98,187.95,2.9]
[1755395087791,3.01,187.98,187.97,2.9]
[1755395087989,3.01,187.98,187.96,8.2167]
[1755395088185,3.01,187.98,187.96,5.3167]
[1755395088491,3.01,187.98,187.97,2.9]
[1755395089293,3.01,187.98,187.97,8.2164]
[1755395090192,3.01,188.03,187.98,5.3161]
[1755395090491,3.01,188.04,187.98,8.2161]
[1755395090697,3.01,188.03,187.98,2.9]
[1755395090990,3.01,188.01,187.99,2.9]
[1755395091293,3.01,188.01,187.99,8.2157]
[1755395092090,5.13,188.01,188.0,5.3156]
[1755395092290,3.01,188.01,188.0,8.2156]
[1755395092487,3.01,188.06,188.0,1.98913873]
[1755395092690,3.01,188.05,188.03,5.3147]
[1755395092996,3.01,188.05,188.04,2.9]
[1755395093993,3.01,188.05,188.04,8.2144]
[1755395094195,3.01,188.05,188.04,5.3144]
[1755395095789,7.01182693,188.05,188.04,5.3144]
[1755395097196,3.01,188.04,188.03,7.30373873]
[1755395097397,7.01667089,188.04,188.03,7.30373873]
[1755395097895,7.01667089,188.04,188.03,10.20373873]
[1755395098391,3.01,188.04,188.03,10.20373873]
[1755395099798,3.01,188.12,188.03,10.20373873]
[1755395100098,3.01,188.1,188.03,10.20373873]
[1755395100299,3.01,188.08,188.04,5.3144]
[1755395100497,3.01,188.06,188.04,5.3144]
[1755395100697,3.01,188.05,188.04,5.3144]
[1755395101402,3.01,188.04,188.03,4.88913873]
[1755395101706,3.01,188.11,188.01,4.88913873]
[1755395101899,3.01,188.09,188.01,4.88913873]
[1755395102099,3.01,188.07,188.01,4.88913873]
[1755395103201,3.01,188.07,188.02,5.315]
[1755395103401,3.01,188.07,188.02,8.215]
[1755395104603,3.01,188.07,188.03,8.2147]
[1755395104799,3.01,188.05,188.04,2.9]
[1755395105401,5.13,188.05,188.04,2.9]
[1755395105802,5.13,188.05,188.03,5.3147]
[1755395105999,3.01,188.04,188.03,8.2147]
[1755395107495,3.01,188.04,188.0,1.98913873]
[1755395108004,3.01,188.04,188.0,4.88913873]
[1755395109199,3.01,188.04,188.0,10.20463873]
[1755395110107,3.01,188.12,188.01,8.2152]
[1755395110309,3.01,188.1,188.01,8.2152]
[1755395110609,3.01,188.1,188.0,1.98913873]
[1755395110610,3.01,188.08,188.0,7.30463873]
[1755395111009,3.01,188.08,188.0,10.20463873]
[1755395111409,3.01,188.08,188.01,5.3153]
[1755395111611,3.01,188.06,187.99,1.98913873]
[1755395111802,3.01,188.06,187.99,7.30493873]
[1755395112006,3.01,188.06,187.99,1.98913873]
[1755395112705,2.12,188.05,188.0,2.9]
[1755395112907,3.01,188.03,188.01,2.9]
[1755395113205,3.01,188.02,187.99,1.98913873]
[1755395113413,3.01,188.11,187.99,4.88913873]
[1755395113612,3.01,188.09,187.99,4.88913873]
[1755395113910,3.01,188.07,188.01,5.3152]
[1755395114504,5.13,188.06,188.02,1.98913873]
[1755395114703,3.01,188.05,188.02,1.98913873]
[1755395114906,3.01,188.05,188.03,2.9]
[1755395115113,357.04,188.15,188.04,5.3142]
[1755395115304,10.39424959,188.14,188.04,5.3142]
[1755395115505,4.00365687,188.13,188.04,5.3142]
[1755395115804,3.01,188.12,188.04,5.3142]
[1755395116007,4.00365687,188.11,188.04,5.3142]
[1755395116208,7.01365687,188.1,188.04,5.3142]
[1755395116403,3.01,188.08,188.04,5.3142]
[1755395116610,3.01,188.08,188.03,8.2146]
[1755395116809,3.01,188.06,188.03,5.3146]
[1755395117214,3.01,188.05,188.03,5.3146]
[1755395117412,3.1,188.04,188.02,8.215]
[1755395117710,3.1,188.04,188.03,2.9]
[1755395117913,3.1,188.04,188.03,8.2147]
[1755395118212,5.22,188.06,188.03,8.2147]
[1755395118413,3.1,188.05,188.03,8.2147]
[1755395118914,3.1,188.04,188.03,2.9]
[1755395119314,3.1,188.05,188.04,2.9]
[1755395120413,3.1,188.04,188.03,2.9]
[1755395120913,3.1,188.03,188.01,2.9]
[1755395121316,3.1,188.12,188.01,2.9]
[1755395121612,3.1,188.1,188.01,8.2153]
[1755395121814,3.1,188.08,188.01,8.2153]
[1755395122015,3.1,188.08,188.02,2.9]
[1755395122515,3.1,188.08,188.02,8.215]
[1755395124411,3.1,188.06,188.03,2.9]
[1755395125118,3.1,188.12,188.02,5.315]
[1755395125318,3.1,188.1,188.02,5.315]
[1755395125514,4.01025019,188.09,188.02,5.315]
[1755395125719,7.11025019,188.08,188.02,5.315]
[1755395126023,3.1,188.06,187.96,1.98913873]
[1755395126220,4.01025019,188.07,187.94,42.0]
[1755395126221,3.1,188.04,187.94,2.9]
[1755395126409,3.1,188.02,187.94,5.3172]
[1755395126721,3.1,188.0,187.92,2.9]
[1755395126919,3.1,188.0,187.93,5.3173]
[1755395128513,3.1,187.98,187.93,5.3173]
[1755395128723,3.1,187.98,187.92,5.3178]
[1755395128913,4.01302763,187.97,187.92,5.3178]
[1755395129114,7.1130023,187.96,187.88,360.3]
[1755395129309,3.1,187.96,187.88,2.9]
[1755395129513,5.22,187.95,187.91,2.9]
[1755395129710,3.1,187.97,187.93,1.98913873]
[1755395130022,3.1,187.97,187.94,2.9]
[1755395130416,3.1,187.96,187.95,2.9]
[1755395130821,5.22,187.96,187.93,4.88913873]
[1755395131026,3.1,187.94,187.93,4.88913873]
[1755395131322,3.1,187.94,187.93,1.98913873]
[1755395131615,1.98913873,188.03,187.91,2.9]
[1755395131819,3.1,188.01,187.91,2.9]
[1755395132022,3.1,187.99,187.91,2.9]
[1755395132316,3.1,187.97,187.91,8.2179]
[1755395132718,3.1,187.97,187.91,2.9]
[1755395132921,3.1,187.97,187.93,2.9]
[1755395133217,3.1,187.95,187.93,2.9]
[1755395133420,3.1,187.95,187.91,2.9]
[1755395133718,3.1,187.94,187.92,2.9]
[1755395133920,3.1,187.93,187.92,2.9]
[1755395134122,2.12,187.95,187.92,2.9]
[1755395134320,3.1,187.94,187.93,2.9]
[1755395135313,3.1,187.93,187.92,5.3178]
[1755395135520,3.1,187.93,187.92,8.2178]
[1755395135921,3.1,188.02,187.9,1.98913873]
[1755395136224,3.1,188.0,187.94,2.9]
[1755395136420,3.1,187.98,187.91,2.9]
[1755395136621,3.1,187.98,187.88,1.98913873]
[1755395136821,3.1,187.96,187.89,2.9]
[1755395137023,3.1,187.96,187.9,5.3182]
[1755395137219,3.1,187.94,187.9,5.3182]
[1755395137622,3.1,187.91,187.9,8.2182]
[1755395138127,3.1,187.99,187.91,5.3181]
[1755395138322,3.1,187.97,187.91,5.3181]
[1755395138727,3.1,187.95,187.91,5.3181]
[1755395139122,3.1,187.93,187.91,5.3181]
[1755395139323,3.1,187.93,187.9,8.2184]
[1755395139524,3.1,187.99,187.9,2.9]
[1755395139824,3.1,187.97,187.93,5.3173]
[1755395140130,3.1,187.97,187.94,2.9]
[1755395140327,3.1,187.95,187.94,2.9]
[1755395140827,3.1,188.02,187.94,2.9]
[1755395141029,3.1,188.0,187.94,2.9]
[1755395141225,3.1,188.0,187.94,4.88913873]
[1755395141431,3.1,188.0,187.95,2.9]
[1755395141632,3.1,187.99,187.95,2.9]
[1755395141930,3.1,187.99,187.98,2.9]
[1755395142828,3.1,188.01,187.97,1.98913873]
[1755395143228,3.1,188.06,187.96,2.9]
[1755395143429,3.1,188.04,187.94,4.88913873]
[1755395143631,3.1,188.02,187.94,4.88913873]
[1755395143821,3.1,188.0,187.94,4.88913873]
[1755395144229,3.1,187.98,187.94,2.9]
[1755395144529,3.1,187.98,187.93,8.2173]
[1755395144729,3.1,187.97,187.93,8.2173]
[1755395145130,3.1,188.03,187.94,8.2172]
[1755395145325,3.1,188.01,187.94,8.2172]
[1755395146032,5.22,188.0,187.92,2.9]
[1755395146324,3.1,188.06,187.95,2.9]
[1755395146529,3.1,188.04,187.95,2.9]
[1755395146725,3.1,188.02,187.95,2.9]
[1755395146934,3.1,188.0,187.95,2.9]
[1755395147132,3.1,188.0,187.96,2.9]
[1755395147326,3.1,188.0,187.94,10.28633873]
[1755395147525,2.12,187.99,187.94,4.96913873]
[1755395147722,2.97,187.98,187.92,2.98]
[1755395147930,5.09,187.98,187.92,2.98]
[1755395148225,2.97,187.97,187.92,2.98]
[1755395148630,2.12,187.96,187.92,2.98]
[1755395148829,2.97,187.95,187.92,2.98]
[1755395149025,2.97,187.95,187.91,2.98]
[1755395149226,2.97,187.95,187.9,7.30743873]
[1755395149431,2.97,187.93,187.86,2.98]
[1755395149928,2.97,187.91,187.86,2.98]
[1755395150132,2.97,187.91,187.87,2.98]
[1755395150333,2.97,187.9,187.79,2.98]
[1755395150631,2.97,187.9,187.79,1.98913873]
[1755395150928,2.97,187.88,187.77,2.98]
[1755395151134,4.95913873,187.86,187.75,2.98]
[1755395151335,2.97,187.85,187.75,8.3026]
[1755395151529,2.12,187.85,187.75,8.3026]
[1755395151728,2.97,187.84,187.75,8.3026]
[1755395152029,1.98913873,187.83,187.72,2.98]
[1755395152339,2.97,187.81,187.72,2.98]
[1755395153031,2.97,187.79,187.68,1.98913873]
[1755395153229,2.97,187.79,187.69,2.98]
[1755395153430,2.97,187.77,187.69,2.98]
[1755395153630,2.97,187.77,187.71,5.3238]
[1755395153831,2.12,187.76,187.71,8.3038]
[1755395154022,2.97,187.73,187.71,5.3238]
[1755395154231,2.97,187.81,187.73,2.98]
[1755395154438,2.97,187.79,187.71,1.98913873]
[1755395154734,2.97,187.79,187.7,5.324]
[1755395155035,2.97,187.77,187.63,2.98]
[1755395155230,2.97,187.77,187.68,8.3046]
[1755395155734,2.97,187.75,187.68,8.3046]
[1755395156127,2.97,187.73,187.68,8.3046]
[1755395156327,2.97,187.72,187.69,2.98]
[1755395156528,2.97,187.71,187.69,5.3243]
[1755395156832,2.97,187.82,187.7,2.98]
[1755395157033,2.97,187.8,187.7,2.98]
[1755395157429,2.97,187.78,187.7,2.98]
[1755395157632,2.97,187.77,187.74,2.98]
[1755395157832,2.97,187.76,187.74,2.98]
[1755395158340,2.97,187.75,187.74,2.98]
[1755395158541,2.97,187.75,187.73,8.3032]
[1755395158733,2.97,187.75,187.73,2.98]
[1755395159433,2.97,187.85,187.72,8.3035]
[1755395159643,2.97,187.83,187.72,8.3035]
[1755395159936,2.97,187.81,187.73,5.3232]
[1755395160133,2.97,187.81,187.74,2.98]
[1755395160333,2.12,187.8,187.74,2.98]
[1755395160532,2.12,187.8,187.73,3.39611019]
[1755395160734,2.97,187.83,187.74,2.98]
[1755395161145,5.09,187.82,187.74,2.98]
[1755395161437,2.97,187.82,187.74,2.98]
[1755395161631,2.97,187.81,187.76,3.39611019]
[1755395161833,2.97,187.81,187.79,2.98]
[1755395163238,2.97,187.85,187.79,2.98]
[1755395163439,5.09,187.85,187.76,6.37611019]
[1755395163640,2.97,187.83,187.76,2.98]
[1755395164042,2.97,187.81,187.76,2.98]
[1755395164245,2.97,187.85,187.77,2.98]
[1755395164439,2.12,187.85,187.77,2.98]
[1755395164639,2.97,187.84,187.77,2.98]
[1755395164941,2.97,187.84,187.78,2.98]
[1755395165338,5.09,187.83,187.79,5.3213]
[1755395165540,2.97,187.82,187.8,2.98]
[1755395166044,2.97,187.81,187.8,2.98]
[1755395166241,2.97,187.81,187.79,5.3213]
[1755395166439,2.97,187.81,187.8,2.98]
[1755395166838,2.97,187.81,187.79,5.3213]
[1755395167144,2.97,187.85,187.77,2.98]
[1755395167340,2.97,187.84,187.77,2.98]
[1755395167538,5.09,187.84,187.76,42.0]
[1755395167844,2.97,187.85,187.77,2.98]
[1755395168044,5.09,187.85,187.77,2.98]
[1755395168248,2.97,187.84,187.77,2.98]
[1755395168749,2.97,187.82,187.77,2.98]
[1755395169246,5.09,187.82,187.77,2.98]
[1755395169747,2.97,187.82,187.77,2.98]
[1755395170145,100.9855468,187.86,187.77,2.98]
[1755395170446,2.97,187.81,187.79,8.3014]
[1755395171447,2.97,187.81,187.8,2.98]
[1755395171648,2.97,187.92,187.81,2.98]
[1755395171849,2.97,187.9,187.81,2.98]
[1755395172050,2.97,187.88,187.82,5.3207]
[1755395172247,2.97,187.86,187.83,2.98]
[1755395172451,2.97,187.84,187.83,2.98]
[1755395173348,5.85415738,187.93,187.83,2.98]
[1755395173554,2.97,187.91,187.83,2.98]
[1755395173751,2.97,187.89,187.83,2.98]
[1755395174052,2.97,187.87,187.83,2.98]
[1755395174250,2.97,187.85,187.81,8.3009]
[1755395174455,2.97,187.85,187.81,2.98]
[1755395174649,2.97,187.83,187.76,48.37611019]
[1755395174850,2.97,187.83,187.76,6.37611019]
[1755395175054,2.97,187.81,187.77,2.98]
[1755395175253,5.85415738,187.92,187.79,2.98]
[1755395175450,2.97,187.9,187.77,2.98]
[1755395175654,2.97,187.88,187.77,2.98]
[1755395175857,4.01838982,187.87,187.77,2.98]
[1755395176154,2.97,187.85,187.77,2.98]
[1755395176355,4.01803864,187.84,187.75,2.98]
[1755395176547,4.01803864,187.83,187.75,2.98]
[1755395176753,2.97,187.82,187.75,2.98]
[1755395176950,2.97,187.82,187.74,5.3229]
[1755395177353,6.13765415,187.81,187.73,10.30365988]
[1755395177651,3.09,187.8,187.74,2.98]
[1755395178358,3.09,187.85,187.77,2.98]
[1755395178560,3.09,187.85,187.8,2.98]
[1755395178760,3.09,187.83,187.81,2.98]
[1755395179257,5.21,187.82,187.75,2.00045988]
[1755395179553,3.09,187.8,187.63,577.0]
[1755395179756,3.09,187.8,187.69,2.00045988]
[1755395179956,3.09,187.8,187.7,2.98]
[1755395180259,3.09,187.8,187.72,5.3232]
[1755395180456,3.09,187.78,187.68,2.98]
[1755395180758,3.09,187.76,187.68,8.3046]
[1755395181156,3.09,187.76,187.69,5.3243]
[1755395181557,3.09,187.76,187.68,2.98]
[1755395182157,3.09,187.74,187.69,5.3243]
[1755395182457,3.09,187.78,187.7,2.98]
[1755395182656,3.09,187.76,187.69,5.3243]
[1755395183163,3.09,187.74,187.69,5.3243]
[1755395183461,3.09,187.81,187.71,2.98]
[1755395183660,4.01916792,187.8,187.71,2.98]
[1755395183862,3.09,187.78,187.68,2.98]
[1755395184066,4.01916792,187.77,187.62,3.39686172]
[1755395184264,3.09,187.75,187.64,2.98]
[1755395184453,3.09,187.73,187.68,8.3046]
[1755395185059,3.09,187.73,187.68,2.98]
[1755395185555,3.09,187.73,187.68,8.3046]
[1755395186566,3.09,187.73,187.69,5.3243]
[1755395186864,3.09,187.71,187.59,3.39686172]
[1755395187060,3.09,187.71,187.66,8.305]
[1755395187261,3.09,187.69,187.59,3.39686172]
[1755395187464,3.09,187.69,187.6,2.98]
[1755395187671,3.09,187.67,187.6,2.98]
[1755395188062,3.09,187.65,187.61,5.3266]
[1755395188262,3.09,187.73,187.61,8.3066]
[1755395188563,3.09,187.71,187.61,8.3066]
[1755395188761,3.09,187.69,187.61,2.98]
[1755395189567,2.12,187.68,187.61,2.98]
[1755395189768,3.09,187.67,187.62,2.98]
[1755395190067,3.09,187.74,187.62,2.98]
[1755395190269,3.09,187.72,187.58,2.98]
[1755395190462,4.01941251,187.71,187.58,2.98]
[1755395190665,4.01941251,187.7,187.58,8.3074]
[1755395190867,3.09,187.68,187.58,8.3074]
[1755395191362,4.02482746,187.67,187.58,8.3074]
[1755395191667,3.09,187.66,187.58,2.98]
[1755395192258,3.09,187.66,187.58,8.3074]
[1755395192662,2.12,187.65,187.58,8.3074]
[1755395192862,3.09,187.64,187.58,8.3074]
[1755395193367,5.85415738,187.73,187.58,5.3274]
[1755395193669,3.09,187.71,187.59,2.98]
[1755395193865,3.09,187.69,187.59,2.98]
[1755395194062,3.09,187.67,187.59,2.98]
[1755395194264,4.0306078,187.66,187.59,2.98]
[1755395194456,5.21,187.66,187.59,2.98]
[1755395194868,3.09,187.65,187.62,2.98]
[1755395195167,3.09,187.64,187.62,2.98]
[1755395195471,8.94415738,187.71,187.58,2.98]
[1755395195765,3.09,187.69,187.6,3.39686172]
[1755395195960,4.03256795,187.68,187.64,2.98]
[1755395196159,3.09,187.66,187.64,2.98]
[1755395196867,3.39686172,187.75,187.65,2.98]
[1755395196868,3.09,187.73,187.65,2.98]
[1755395197167,3.09,187.71,187.65,2.98]
[1755395197368,3.09,187.69,187.6,3.39686172]
[1755395197569,7.12315203,187.68,187.61,2.98]
[1755395197764,3.09,187.68,187.61,2.98]
[1755395197967,3.09,187.68,187.63,5.3258]
[1755395198166,5.21,187.67,187.64,2.98]
[1755395198462,3.09,187.67,187.65,2.98]
[1755395198669,5.21,187.67,187.65,2.98]
[1755395198968,3.09,187.66,187.64,2.98]
[1755395199271,8.78007647,187.77,187.64,2.98]
[1755395199272,3.09,187.74,187.64,2.98]
[1755395199565,3.09,187.72,187.61,2.98]
[1755395199768,3.09,187.7,187.61,2.98]
[1755395199969,3.09,187.68,187.61,8.3064]
[1755395200264,3.09,187.68,187.61,2.98]
[1755395201170,3.09,187.68,187.62,5.3262]
[1755395201468,3.09,187.68,187.64,2.98]
[1755395201665,3.09,187.66,187.64,2.98]
[1755395201970,3.09,187.75,187.64,2.98]
[1755395202166,3.09,187.73,187.64,2.98]
[1755395202366,4.03057004,187.72,187.64,2.98]
[1755395202563,3.09,187.7,187.64,2.98]
[1755395202769,4.03057004,187.69,187.64,2.98]
[1755395202967,3.09,187.68,187.64,2.98]
[1755395203370,3.09,187.68,187.61,2.00302482]
[1755395203565,3.09,187.66,187.62,2.98]
[1755395204270,3.09,187.66,187.63,5.326]
[1755395204472,3.09,187.66,187.64,2.98]
[1755395204669,3.09,187.66,187.63,5.326]
[1755395204867,2.12,187.66,187.62,2.98]
[1755395205068,3.09,187.64,187.59,2.98]
[1755395205570,5.21,187.64,187.59,2.98]
[1755395205772,3.09,187.63,187.59,2.98]
[1755395205970,2.12,187.64,187.6,2.98]
[1755395206175,3.09,187.63,187.59,2.98]
[1755395206770,3.09,187.62,187.59,2.98]
[1755395206976,3.09,187.62,187.6,2.98]
[1755395207272,2.84,187.61,187.6,2.98]
[1755395209178,2.84,187.7,187.58,2.00302482]
[1755395209377,4.02732897,187.69,187.58,2.00302482]
[1755395209576,2.84,187.67,187.58,2.00302482]
[1755395211469,2.84,187.67,187.58,7.33042482]
[1755395211678,2.84,187.65,187.59,2.96]
[1755395212074,2.84,187.63,187.58,2.00302482]
[1755395212272,2.84,187.62,187.58,2.00302482]
[1755395212478,2.84,187.62,187.61,2.96]
[1755395213082,2.84,187.62,187.59,5.3271]
[1755395213379,2.84,187.61,187.6,2.96]
[1755395213678,2.84,187.63,187.6,2.96]
[1755395213981,2.84,187.69,187.6,2.96]
[1755395214174,2.84,187.67,187.6,2.96]
[1755395214378,2.84,187.67,187.58,2.00302482]
[1755395214573,2.84,187.65,187.58,2.00302482]
[1755395214974,2.84,187.63,187.59,2.96]
[1755395215174,2.84,187.63,187.58,7.33042482]
[1755395215370,2.12,187.63,187.58,7.33042482]
[1755395215579,2.84,187.62,187.6,2.96]
[1755395215881,2.12,187.63,187.6,2.96]
[1755395216183,2.84,187.64,187.63,2.96]
[1755395216481,4.96,187.64,187.63,2.96]
[1755395216675,4.96,187.64,187.61,5.3265]
[1755395216676,2.12,187.64,187.61,2.96]
[1755395216889,2.84,187.63,187.61,2.96]
[1755395217884,2.84,187.62,187.61,2.96]
[1755395218483,2.12,187.62,187.58,4.96302482]
[1755395218677,2.84,187.61,187.58,4.96302482]
[1755395218875,2.12,187.62,187.58,2.00302482]
[1755395219070,2.84,187.61,187.6,2.96]
[1755395219376,2.12,187.62,187.61,2.96]
[1755395219976,2.12,187.62,187.61,8.2866]
[1755395220385,2.84,187.71,187.62,2.96]
[1755395220581,2.84,187.69,187.63,2.96]
[1755395220979,2.84,187.67,187.64,2.96]
[1755395221180,7.8571822,187.75,187.64,2.96]
[1755395221485,2.84,187.73,187.65,2.96]
[1755395221684,2.84,187.71,187.68,2.96]
[1755395221886,365.8571822,187.78,187.68,2.96]
[1755395221887,2.84,187.7,187.68,2.96]
[1755395222178,2.84,187.69,187.68,2.96]
[1755395224284,2.84,187.76,187.66,8.2851]
[1755395224487,2.84,187.74,187.66,2.96]
[1755395224684,2.84,187.72,187.66,2.96]
[1755395224884,2.84,187.7,187.65,2.96]
[1755395225086,2.84,187.69,187.65,2.96]
[1755395225282,8.69415738,187.75,187.66,2.96]
[1755395225484,2.84,187.73,187.66,2.96]
[1755395225684,2.84,187.71,187.66,2.96]
[1755395225885,4.05890247,187.7,187.66,2.96]
[1755395226087,2.84,187.68,187.66,2.96]
[1755395226784,5.85415738,187.75,187.66,2.96]
[1755395226980,2.84,187.67,187.66,2.96]
[1755395227179,2.12,187.74,187.65,2.96]
[1755395227383,2.84,187.72,187.63,2.96]
[1755395227584,2.84,187.7,187.63,2.96]
[1755395227886,2.84,187.68,187.64,2.00302482]
[1755395228192,2.84,187.68,187.65,2.96]
[1755395228391,2.84,187.68,187.65,8.2854]
[1755395228591,6.90251222,187.67,187.66,2.96]
[1755395228794,2.84,187.66,187.64,2.00302482]
[1755395228993,2.84,187.66,187.62,2.96]
[1755395228994,2.84,187.66,187.62,8.2863]
[1755395229185,4.96,187.66,187.62,8.2863]
[1755395229386,2.84,187.65,187.62,8.2863]
[1755395229891,2.84,187.65,187.62,2.96]
[1755395230290,2.84,187.73,187.62,2.96]
[1755395230488,2.84,187.71,187.62,2.96]
[1755395230687,4.06346857,187.72,187.62,2.96]
[1755395230688,2.84,187.69,187.62,2.96]
[1755395230891,6.90346857,187.68,187.62,2.96]
[1755395231087,2.12,187.73,187.61,2.00302482]
[1755395231290,2.84,187.71,187.65,2.96]
[1755395231488,2.84,187.69,187.64,2.00302482]
[1755395231693,2.84,187.69,187.68,2.96]
[1755395232194,2.84,187.67,187.65,2.96]
[1755395232597,2.84,187.67,187.66,2.96]
[1755395232889,4.96,187.69,187.66,2.96]
[1755395233092,2.84,187.68,187.66,2.96]
[1755395233396,2.84,187.67,187.66,2.96]
[1755395234588,2.84,187.67,187.64,2.00302482]
[1755395234589,2.84,187.66,187.65,2.96]
[1755395235294,2.84,187.66,187.65,8.2854]
[1755395235795,2.84,187.75,187.65,2.96]
[1755395235996,4.06341167,187.74,187.65,2.96]
[1755395236193,2.84,187.72,187.68,8.2846]
[1755395236390,2.84,187.7,187.69,2.96]
[1755395236594,5.85415738,187.77,187.69,8.2843]
[1755395236595,2.84,187.77,187.69,8.2843]
[1755395236789,358.0,187.78,187.69,2.96]
[1755395236790,2.84,187.75,187.69,2.96]
[1755395236991,2.84,187.73,187.7,2.00302482]
[1755395237295,2.92,187.76,187.71,2.89]
[1755395237492,7.8571822,187.83,187.71,2.89]
[1755395237695,6.18291479,187.82,187.71,2.89]
[1755395237998,2.92,187.74,187.73,2.89]
[1755395238199,2.92,187.74,187.73,8.213]
[1755395238495,2.92,187.74,187.73,5.323]